fUSD/lending_fUSD_20260427
["ID","MTS","AMOUNT","RATE_DAILY","PERIOD"]
[421248861,1777287145272,-876.6,0.00036712,120]
[421248862,1777287145281,-1292.17,0.00036712,120]
[421248863,1777287145291,-500.0,0.00036712,120]
[421248864,1777287145300,-2804.65,0.00036712,120]
[421248865,1777287145311,-831.75,0.00036712,14]
[421248866,1777287145321,-500.0,0.00036712,14]
[421248867,1777287145331,-695.08,0.00036712,120]
[421248868,1777287145340,-975.03,0.00036712,120]
[421248869,1777287145349,-500.0,0.00036712,120]
[421248870,1777287145359,-667.25,0.00036712,120]
[421248871,1777287145367,-500.0,0.00036712,120]
[421248872,1777287145377,-500.0,0.00036712,120]
[421248873,1777287145386,-514.22,0.00036712,120]
[421248874,1777287145395,-808.81,0.00036712,120]
[421248875,1777287145404,-656.37,0.00036712,120]
[421248876,1777287145414,-924.49,0.00036712,120]
[421248877,1777287145423,-1754.83,0.00036712,120]
[421248878,1777287145433,-809.84,0.00036712,120]
[421248879,1777287145442,-816.58,0.00036712,120]
[421248880,1777287145451,-1699.99,0.00036712,120]
[421248881,1777287145461,-963.43,0.00036712,120]
[421248882,1777287145470,-988.21,0.00036712,120]
[421248883,1777287145479,-803.53,0.00036712,120]
[421248884,1777287145488,-500.0,0.00036712,120]
[421248885,1777287145498,-983.75,0.00036712,120]
[421248886,1777287145507,-806.48,0.00036712,120]
[421248887,1777287145612,-1721.56,0.00036712,120]
[421248888,1777287145622,-899.89,0.00036712,120]
[421248889,1777287145631,-1666.52,0.00036712,120]
[421248890,1777287145640,-903.54,0.00036712,120]
[421248891,1777287145649,-640.16,0.00036712,120]
[421248892,1777287145659,-2805.42,0.00036712,120]
[421248893,1777287145668,-1658.74,0.00036712,120]
[421248894,1777287145677,-507.17,0.00036712,120]
[421248895,1777287145687,-760.12,0.00036712,120]
[421248896,1777287145695,-1131.48,0.00036712,120]
[421248897,1777287145705,-500.0,0.00036712,120]
[421248898,1777287145715,-1275.35,0.00036712,120]
[421248899,1777287145724,-1746.47,0.00036712,120]
[421248900,1777287145732,-1186.63,0.00036712,120]
[421248901,1777287145739,-726.02,0.00036712,120]
[421248902,1777287145748,-857.8,0.00036712,120]
[421248903,1777287145758,-942.29,0.00036712,120]
[421248904,1777287145767,-888.77,0.00036712,120]
[421248905,1777287145775,-615.52,0.00036712,120]
[421248906,1777287145785,-371.01848459,0.00036712,120]
[421248907,1777287145794,-691.21,0.00036712,120]
[421248908,1777287145803,-1549.89,0.00036712,120]
[421248909,1777287145812,-597.1,0.00036712,120]
[421248910,1777287145821,-646.3,0.00036712,120]
[421248911,1777287145831,-516.45,0.00036712,120]
[421248912,1777287145840,-996.25,0.00036712,120]
[421248913,1777287145849,-729.86,0.00036712,120]
[421248914,1777287145858,-862.2,0.00036712,120]
[421248915,1777287145868,-902.68,0.00036712,120]
[421248916,1777287145876,-500.0,0.00036712,120]
[421248917,1777287145886,-932.95,0.00036712,120]
[421248918,1777287145896,-501.5,0.00036712,120]
[421248919,1777287145905,-932.07,0.00036712,120]
[421248920,1777287145915,-638.61,0.00036712,120]
[421248921,1777287145924,-946.6,0.00036712,120]
[421248922,1777287145933,-500.0,0.00036712,120]
[421248923,1777287145943,-1014.18,0.00036712,120]
[421248924,1777287145952,-714.89,0.00036712,120]
[421248925,1777287145961,-1988.17,0.00036712,120]
[421248926,1777287145971,-563.81,0.00036712,120]
[421248927,1777287145980,-500.0,0.00036712,120]
[421248928,1777287145990,-500.0,0.00036712,120]
[421248929,1777287145999,-307.96010376,0.00036712,7]
[421248930,1777287146009,-885.91,0.00036712,120]
[421248931,1777287146019,-1640.34,0.00036712,120]
[421248932,1777287146028,-500.0,0.00036712,120]
[421248933,1777287146038,-891.92,0.00036712,120]
[421248934,1777287146047,-669.56,0.00036712,120]
[421248935,1777287146056,-500.0,0.00036712,120]
[421248936,1777287146065,-1390.78,0.00036712,120]
[421248937,1777287146075,-500.0,0.00036712,120]
[421248938,1777287146084,-500.0,0.00036712,120]
[421248939,1777287146093,-500.0,0.00036712,120]
[421248940,1777287146102,-668.1,0.00036712,120]
[421248941,1777287146112,-660.18,0.00036712,120]
[421248942,1777287146121,-691.69,0.00036712,120]
[421248943,1777287146131,-691.03,0.00036712,120]
[421248944,1777287146140,-500.0,0.00036712,120]
[421248945,1777287146150,-618.59,0.00036712,30]
[421248946,1777287146159,-922.63,0.00036712,120]
[421248947,1777287146169,-953.58,0.00036712,120]
[421248948,1777287146178,-525.11,0.00036712,120]
[421248949,1777287146187,-4917.9,0.00036712,120]
[421248950,1777287146197,-551.36,0.00036712,120]
[421248951,1777287146206,-840.29,0.00036712,120]
[421248952,1777287146215,-739.88,0.00036712,120]
[421248953,1777287146225,-1800.54,0.00036712,120]
[421248954,1777287146235,-919.84,0.00036712,120]
[421248955,1777287146244,-500.0,0.00036712,120]
[421248956,1777287146253,-1344.25,0.00036712,120]
[421248957,1777287146263,-576.0319818,0.00036712,30]
[421248958,1777287146273,-916.78,0.00036712,120]
[421248959,1777287146282,-500.0,0.00036712,60]
[421248960,1777287146292,-1345.97,0.00036712,120]
[421248961,1777287146302,-1078.03,0.00036712,120]
[421248962,1777287146311,-947.63,0.00036712,120]
[421248963,1777287146321,-549.91,0.00036712,120]
[421248964,1777287146331,-500.0,0.00036712,120]
[421248965,1777287146341,-748.29,0.00036712,120]
[421248966,1777287146350,-1742.02,0.00036712,120]
[421248967,1777287146360,-980.13,0.00036712,120]
[421248968,1777287146369,-547.89,0.00036712,120]
[421248969,1777287146378,-490.96500121,0.00036712,120]
[421248970,1777287146387,-808.71,0.00036712,120]
[421248971,1777287146398,-697.0,0.00036712,120]
[421248972,1777287146407,-698.74,0.00036712,120]
[421248973,1777287146417,-861.18,0.00036712,120]
[421248974,1777287146426,-599.72,0.00036712,120]
[421248975,1777287146435,-971.15,0.00036712,120]
[421248976,1777287146445,-1898.91,0.00036712,120]
[421248977,1777287146454,-2008.02,0.00036712,120]
[421248978,1777287146463,-500.0,0.00036712,120]
[421248979,1777287146473,-546.88,0.00036712,120]
[421248980,1777287146482,-500.0,0.00036712,120]
[421248981,1777287146492,-933.2,0.00036712,120]
[421248982,1777287146501,-923.43,0.00036712,120]
[421248983,1777287146510,-814.23,0.00036712,7]
[421248984,1777287146519,-500.0,0.00036712,120]
[421248985,1777287146528,-545.89,0.00036712,120]
[421248986,1777287146537,-500.0,0.00036712,120]
[421248987,1777287146546,-607.22,0.00036712,120]
[421248988,1777287146555,-500.0,0.00036712,120]
[421248989,1777287146564,-1022.01,0.00036712,120]
[421248990,1777287146574,-1403.37,0.00036712,120]
[421248991,1777287146583,-996.98,0.00036712,120]
[421248992,1777287146593,-500.0,0.00036712,120]
[421248993,1777287146602,-571.92,0.00036712,120]
[421248994,1777287146612,-500.0,0.00036712,120]
[421248995,1777287146622,-500.0,0.00036712,120]
[421248996,1777287146631,-500.0,0.00036712,120]
[421248997,1777287146640,-500.0159131,0.00036712,120]
[421248998,1777287146650,-2027.39,0.00036712,120]
[421248999,1777287146659,-544.78,0.00036712,120]
[421249000,1777287146668,-1173.63,0.00036712,120]
[421249001,1777287146677,-580.92,0.00036712,120]
[421249002,1777287146686,-957.19,0.00036712,120]
[421249003,1777287146695,-500.0,0.00036712,120]
[421249004,1777287146704,-500.0,0.00036712,120]
[421249005,1777287146714,-1129.42,0.00036712,120]
[421249006,1777287146723,-549.6,0.00036712,120]
[421249007,1777287146732,-160.43181479,0.00036712,120]
[421249008,1777287146741,-500.0,0.00036712,120]
[421249009,1777287146751,-957.72,0.00036712,120]
[421249010,1777287146760,-2273.93,0.00036712,120]
[421249011,1777287146770,-531.34,0.00036712,120]
[421249012,1777287146779,-500.0,0.00036712,120]
[421249013,1777287146788,-500.0,0.00036712,120]
[421249014,1777287146798,-826.33,0.00036712,120]
[421249015,1777287146807,-509.36,0.00036712,120]
[421249016,1777287146817,-1144.83,0.00036712,120]
[421249017,1777287146826,-870.72,0.00036712,120]
[421249018,1777287146835,-500.0,0.00036712,120]
[421249019,1777287146845,-1987.57,0.00036712,120]
[421249020,1777287146855,-500.0,0.00036712,120]
[421249021,1777287146864,-1889.91,0.00036712,120]
[421249022,1777287146873,-997.41,0.00036712,120]
[421249023,1777287146883,-500.0,0.00036712,120]
[421249024,1777287146891,-645.47,0.00036712,120]
[421249025,1777287146901,-551.39,0.00036712,120]
[421249026,1777287146910,-607.71,0.00036712,120]
[421249027,1777287146920,-1410.28,0.00036712,120]
[421249028,1777287146930,-1075.28,0.00036712,120]
[421249029,1777287146939,-512.2,0.00036712,120]
[421249030,1777287146949,-571.84,0.00036712,120]
[421249031,1777287146958,-500.0,0.00036712,120]
[421249032,1777287146967,-446.372929,0.00036712,120]
[421249033,1777287146976,-670.88,0.00036712,120]
[421249034,1777287146986,-927.87,0.00036712,120]
[421249035,1777287146995,-733.46,0.00036712,120]
[421249036,1777287147005,-500.0,0.00036712,120]
[421249037,1777287147014,-845.56,0.00036712,120]
[421249038,1777287147022,-500.0,0.00036712,120]
[421249039,1777287147032,-500.0,0.00036712,120]
[421249040,1777287147041,-1708.75,0.00036712,120]
[421249041,1777287147050,-1389.02,0.00036712,120]
[421249042,1777287147059,-969.99,0.00036712,120]
[421249043,1777287147069,-721.4,0.00036712,120]
[421249044,1777287147078,-832.2,0.00036712,120]
[421249045,1777287147088,-1256.96,0.00036712,120]
[421249046,1777287147101,-822.73,0.00036712,120]
[421249047,1777287147110,-1697.87,0.00036712,120]
[421249048,1777287147119,-725.79,0.00036712,120]
[421249049,1777287147128,-740.81,0.00036712,120]
[421249050,1777287147138,-767.5,0.00036712,120]
[421249051,1777287147148,-704.65,0.00036712,120]
[421249052,1777287147157,-874.64,0.00036712,120]
[421249053,1777287147167,-639.97773244,0.00036712,120]
[421249054,1777287147176,-539.51,0.00036712,120]
[421249055,1777287147185,-1571.63,0.00036712,120]
[421249056,1777287147194,-3139.33,0.00036712,120]
[421249057,1777287147203,-631.89,0.00036712,120]
[421249058,1777287147213,-724.47,0.00036712,120]
[421249059,1777287147223,-714.42,0.00036712,120]
[421249060,1777287147232,-830.35,0.00036712,120]
[421249061,1777287147242,-529.87,0.00036712,120]
[421249062,1777287147251,-890.53,0.00036712,120]
[421249063,1777287147260,-633.28,0.00036712,120]
[421249064,1777287147269,-1042.08,0.00036712,120]
[421249065,1777287147279,-1031.26,0.00036712,120]
[421249066,1777287147289,-500.0,0.00036712,120]
[421249067,1777287147301,-789.82,0.00036712,120]
[421249068,1777287147310,-387.08997579,0.00036712,120]
[421249069,1777287147319,-1044.44,0.00036712,7]
[421249070,1777287147328,-386.54276462,0.00036712,120]
[421249071,1777287147337,-2152.64,0.00036712,120]
[421249072,1777287147347,-500.0,0.00036712,120]
[421249073,1777287147356,-951.45,0.00036712,120]
[421249074,1777287147365,-10570.76,0.00036712,120]
[421249075,1777287147375,-953.25,0.00036712,120]
[421249076,1777287147384,-385.91981726,0.00036712,120]
[421249077,1777287147393,-500.0,0.00036712,120]
[421249078,1777287147402,-683.94,0.00036712,120]
[421249079,1777287147412,-1457.61,0.00036712,120]
[421249080,1777287147421,-853.59,0.00036712,120]
[421249081,1777287147430,-927.26,0.00036712,120]
[421249082,1777287147439,-692.0,0.00036712,120]
[421249083,1777287147448,-500.0,0.00036712,120]
[421249084,1777287147458,-1072.51,0.00036712,120]
[421249085,1777287147467,-2915.57,0.00036712,120]
[421249086,1777287147476,-500.0,0.00036712,120]
[421249087,1777287147486,-731.44,0.00036712,120]
[421249088,1777287147495,-701.43,0.00036712,120]
[421249089,1777287147503,-500.0,0.00036712,120]
[421249090,1777287147513,-954.88,0.00036712,120]
[421249091,1777287147521,-838.15,0.00036712,120]
[421249092,1777287147530,-1783.16,0.00036712,120]
[421249093,1777287147539,-500.0,0.00036712,120]
[421249094,1777287147548,-500.0,0.00036712,120]
[421249095,1777287147558,-4705.11,0.00036712,120]
[421249096,1777287147568,-1730.6,0.00036712,120]
[421249097,1777287147577,-500.0,0.00036712,120]
[421249098,1777287147587,-1123.77,0.00036712,120]
[421249099,1777287147601,-500.0,0.00036712,120]
[421249100,1777287147610,-1408.68,0.00036712,120]
[421249101,1777287147619,-714.81,0.00036712,120]
[421249102,1777287147628,-500.0,0.00036712,120]
[421249103,1777287147638,-5381.05,0.00036712,120]
[421249104,1777287147647,-667.82,0.00036712,120]
[421249105,1777287147657,-1779.59,0.00036712,120]
[421249106,1777287147666,-922.62,0.00036712,120]
[421249107,1777287147675,-500.0,0.00036712,120]
[421249108,1777287147684,-625.44,0.00036712,5]
[421249109,1777287147693,-1690.78,0.00036712,120]
[421249110,1777287147703,-2035.1,0.00036712,120]
[421249111,1777287147712,-674.61,0.00036712,120]
[421249112,1777287147721,-500.0,0.00036712,120]
[421249113,1777287147731,-1164.41,0.00036712,120]
[421249114,1777287147740,-1082.08,0.00036712,120]
[421249115,1777287147751,-500.0,0.00036712,120]
[421249116,1777287147760,-998.96,0.00036712,120]
[421249117,1777287147769,-1043.04,0.00036712,120]
[421249118,1777287147778,-784.08,0.00036712,120]
[421249119,1777287147788,-1079.64,0.00036712,120]
[421249120,1777287147797,-1143.94,0.00036712,120]
[421249121,1777287147806,-1451.57,0.00036712,120]
[421249122,1777287147815,-819.21,0.00036712,120]
[421249123,1777287147824,-1138.56,0.00036712,120]
[421249124,1777287147833,-601.09,0.00036712,120]
[421249125,1777287147844,-4201.7,0.00036712,120]
[421249126,1777287147853,-1047.55,0.00036712,120]
[421249127,1777287147862,-996.55,0.00036712,120]
[421249128,1777287147872,-541.91,0.00036712,120]
[421249129,1777287147881,-500.0,0.00036712,120]
[421249130,1777287147891,-795.18,0.00036712,120]
[421249131,1777287147900,-1162.36,0.00036712,120]
[421249132,1777287147909,-845.1,0.00036712,120]
[421249133,1777287147918,-500.0,0.00036712,120]
[421249134,1777287147928,-1487.38,0.00036712,120]
[421249135,1777287147937,-500.0,0.00036712,120]
[421249136,1777287147947,-500.0,0.00036712,120]
[421249137,1777287147957,-500.0,0.00036712,120]
[421249138,1777287147966,-898.94,0.00036712,120]
[421249139,1777287147975,-2636.09,0.00036712,120]
[421249140,1777287147984,-500.0,0.00036712,120]
[421249141,1777287147993,-1789.45,0.00036712,120]
[421249142,1777287148003,-500.62,0.00036712,120]
[421249143,1777287148012,-500.0,0.00036712,120]
[421249144,1777287148022,-1085.3,0.00036712,120]
[421249145,1777287148031,-892.08,0.00036712,120]
[421249146,1777287148041,-631.37,0.00036712,120]
[421249147,1777287148050,-500.0,0.00036712,120]
[421249148,1777287148059,-581.62,0.00036712,120]
[421249149,1777287148069,-808.43,0.00036712,120]
[421249150,1777287148078,-741.62,0.00036712,120]
[421249151,1777287148087,-500.0,0.00036712,120]
[421249152,1777287148096,-500.0,0.00036712,120]
[421249153,1777287148106,-762.27,0.00036712,120]
[421249154,1777287148115,-1157.96,0.00036712,120]
[421249155,1777287148125,-500.0,0.00036712,120]
[421249156,1777287148134,-633.93,0.00036712,120]
[421249157,1777287148144,-874.69,0.00036712,120]
[421249158,1777287148154,-900.98,0.00036712,120]
[421249159,1777287148164,-500.0,0.00036712,120]
[421249160,1777287148174,-10204.73,0.00036712,120]
[421249161,1777287148184,-1526.17,0.00036712,120]
[421249162,1777287148193,-500.0,0.00036712,120]
[421249163,1777287148203,-500.0,0.00036712,120]
[421249164,1777287148213,-500.0,0.00036712,120]
[421249165,1777287148224,-891.6,0.00036712,120]
[421249166,1777287148234,-1367.53,0.00036712,120]
[421249167,1777287148244,-500.0,0.00036712,120]
[421249168,1777287148254,-683.25,0.00036712,120]
[421249169,1777287148263,-737.72,0.00036712,120]
[421249170,1777287148272,-10627.51,0.00036712,11]
[421249171,1777287148282,-1508.4,0.00036712,120]
[421249172,1777287148291,-500.0,0.00036712,120]
[421249173,1777287148300,-944.61,0.00036712,120]
[421249174,1777287148310,-1952.39,0.00036712,120]
[421249175,1777287148319,-992.31,0.00036712,120]
[421249176,1777287148329,-644.32,0.00036712,120]
[421249177,1777287148338,-855.86,0.00036712,120]
[421249178,1777287148349,-938.15,0.00036712,120]
[421249179,1777287148358,-976.87,0.00036712,120]
[421249180,1777287148368,-500.0,0.00036712,120]
[421249181,1777287148377,-500.0,0.00036712,120]
[421249182,1777287148385,-505.03,0.00036712,120]
[421249183,1777287148395,-889.14,0.00036712,120]
[421249184,1777287148404,-500.0,0.00036712,120]
[421249185,1777287148413,-816.73,0.00036712,120]
[421249186,1777287148423,-624.72,0.00036712,120]
[421249187,1777287148432,-9821.09,0.00036712,14]
[421249188,1777287148442,-523.03,0.00036712,120]
[421249189,1777287148451,-2650.84,0.00036712,2]
[421249190,1777287148460,-500.0,0.00036712,120]
[421249191,1777287148469,-822.98,0.00036712,120]
[421249192,1777287148479,-729.37,0.00036712,120]
[421249193,1777287148488,-1000.0,0.00036712,120]
[421249194,1777287148498,-1044.79,0.00036712,120]
[421249195,1777287148507,-2033.75,0.00036712,120]
[421249196,1777287148516,-2315.34,0.00036712,120]
[421249197,1777287148525,-957.71,0.00036712,120]
[421249198,1777287148535,-1144.22,0.00036712,120]
[421249199,1777287148544,-500.0,0.00036712,120]
[421249200,1777287148553,-872.94,0.00036712,120]
[421249201,1777287148562,-651.78,0.00036712,120]
[421249202,1777287148571,-314.62494859,0.00036712,120]
[421249203,1777287148581,-905.69,0.00036712,120]
[421249204,1777287148590,-659.77,0.00036712,120]
[421249205,1777287148599,-572.93,0.00036712,120]
[421249206,1777287148608,-526.89,0.00036712,120]
[421249207,1777287148617,-2198.73,0.00036712,31]
[421249208,1777287148627,-936.24,0.00036712,120]
[421249209,1777287148636,-7236.62,0.00036712,120]
[421249210,1777287148646,-601.2,0.00036712,120]
[421249211,1777287148655,-1500.0,0.00036712,120]
[421249212,1777287148664,-329.20158577,0.00036712,120]
[421249213,1777287148674,-500.0,0.00036712,120]
[421249214,1777287148683,-300.0,0.000368,120]
[421249215,1777287148692,-300.0,0.000368,120]
[421249216,1777287148702,-568.31,0.00036843,2]
[421249217,1777287148711,-478.09,0.00036849,2]
[421249218,1777287148720,-194.5,0.000369,120]
[421249219,1777287148729,-40919.8,0.00036986,120]
[421249220,1777287148738,-5510.884336,0.00036986,120]
[421249221,1777287148747,-406.931409,0.00036986,120]
[421249222,1777287148756,-325.762595,0.00036986,120]
[421249223,1777287148766,-342.964341,0.00036986,120]
[421249224,1777287148775,-2698.281126,0.00036986,120]
[421249225,1777287148784,-500.0,0.00036986,120]
[421249226,1777287148793,-863.36,0.00036986,120]
[421249227,1777287148801,-500.0,0.00036986,2]
[421249228,1777287148811,-500.0,0.00036986,120]
[421249229,1777287148819,-599.06,0.00036986,120]
[421249230,1777287148828,-640.83,0.00036986,120]
[421249231,1777287148837,-565.53,0.00036986,120]
[421249232,1777287148846,-1211.95,0.00036986,120]
[421249233,1777287148855,-553.4,0.00036986,120]
[421249234,1777287148864,-715.07,0.00036986,120]
[421249235,1777287148873,-500.0,0.00036986,120]
[421249236,1777287148883,-938.55,0.00036986,120]
[421249237,1777287148892,-1090.36,0.00036986,120]
[421249238,1777287148901,-634.95,0.00036986,120]
[421249239,1777287148910,-528.14,0.00036986,120]
[421249240,1777287148919,-1072.38,0.00036986,120]
[421249241,1777287148928,-1314.31,0.00036986,120]
[421249242,1777287148938,-703.47,0.00036986,120]
[421249243,1777287148947,-500.0,0.00036986,120]
[421249244,1777287148956,-500.0,0.00036986,120]
[421249245,1777287148966,-787.64,0.00036986,120]
[421249246,1777287148975,-516.81,0.00036986,120]
[421249247,1777287148984,-2357.31,0.00036986,120]
[421249248,1777287148993,-500.0,0.00036986,120]
[421249249,1777287149002,-500.0,0.00036986,120]
[421249250,1777287149012,-200.9582878,0.00036986,120]
[421249251,1777287149021,-1649.9,0.00036986,30]
[421249252,1777287149030,-527.75,0.00036986,120]
[421249253,1777287149039,-663.98,0.00036986,120]
[421249254,1777287149048,-752.81,0.00036986,120]
[421249255,1777287149057,-696.22,0.00036986,120]
[421249256,1777287149066,-500.0,0.00036986,120]
[421249257,1777287149076,-500.0,0.00036986,120]
[421249258,1777287149085,-1446.95,0.00036986,120]
[421249259,1777287149094,-964.96,0.00036986,120]
[421249260,1777287149104,-529.41,0.00036986,120]
[421249261,1777287149113,-500.0,0.00036986,120]
[421249262,1777287149122,-500.0,0.00036986,120]
[421249263,1777287149131,-500.0,0.00036986,120]
[421249264,1777287149141,-1077.32,0.00036986,120]
[421249265,1777287149150,-1000.0,0.00036986,120]
[421249266,1777287149159,-949.83,0.00036986,120]
[421249267,1777287149169,-765.4,0.00036986,120]
[421249268,1777287149178,-599.76,0.00036986,120]
[421249269,1777287149187,-500.0,0.00036986,120]
[421249270,1777287149196,-500.0,0.00036986,120]
[421249271,1777287149205,-812.99,0.00036986,120]
[421249272,1777287149215,-1319.91,0.00036986,120]
[421249273,1777287149224,-559.35,0.00036986,120]
[421249274,1777287149233,-1706.39,0.00036986,120]
[421249275,1777287149243,-500.0,0.00036986,120]
[421249276,1777287149252,-547.23617731,0.00036986,120]
[421249277,1777287149261,-668.63,0.00036986,120]
[421249278,1777287149271,-500.0,0.00036986,120]
[421249279,1777287149280,-1799.8,0.00036986,30]
[421249280,1777287149289,-2310.82,0.00036986,120]
[421249281,1777287149299,-500.0,0.00036986,120]
[421249282,1777287149308,-951.83,0.00036986,120]
[421249283,1777287149317,-500.0,0.00036986,120]
[421249284,1777287149326,-500.0,0.00036986,120]
[421249285,1777287149335,-500.0,0.00036986,120]
[421249286,1777287149347,-500.0,0.00036986,120]
[421249287,1777287149356,-691.55,0.00036986,120]
[421249288,1777287149365,-500.0,0.00036986,120]
[421249289,1777287149375,-822.42,0.00036986,120]
[421249290,1777287149384,-690.22,0.00036986,120]
[421249291,1777287149393,-1041.51,0.00036986,120]
[421249292,1777287149402,-817.53,0.00036986,120]
[421249293,1777287149411,-500.0,0.00036986,120]
[421249294,1777287149420,-500.0,0.00036986,120]
[421249295,1777287149429,-812.8,0.00036986,120]
[421249296,1777287149438,-894.99,0.00036986,120]
[421249297,1777287149447,-1018.47,0.00036986,120]
[421249298,1777287149456,-500.0,0.00036986,120]
[421249299,1777287149465,-1560.45,0.00036986,10]
[421249300,1777287149474,-654.65,0.00036986,120]
[421249301,1777287149483,-770.15,0.00036986,120]
[421249302,1777287149492,-747.23,0.00036986,120]
[421249303,1777287149501,-592.21,0.00036986,120]
[421249304,1777287149510,-1047.65,0.00036986,120]
[421249305,1777287149519,-500.0,0.00036986,120]
[421249306,1777287149529,-548.93,0.00036986,120]
[421249307,1777287149538,-500.0,0.00036986,120]
[421249308,1777287149548,-500.0,0.00036986,120]
[421249309,1777287149558,-1885.25,0.00036986,120]
[421249310,1777287149567,-632.88,0.00036986,120]
[421249311,1777287149577,-810.82,0.00036986,120]
[421249312,1777287149586,-1242.85,0.00036986,120]
[421249313,1777287149599,-696.25,0.00036986,120]
[421249314,1777287149811,-500.0,0.00036986,120]
[421249315,1777287149821,-1579.01,0.00036986,120]
[421249316,1777287149832,-601.37,0.00036986,120]
[421249317,1777287149842,-1456.44,0.00036986,120]
[421249318,1777287149852,-595.98,0.00036986,120]
[421249319,1777287149862,-500.0,0.00036986,120]
[421249320,1777287149872,-1572.92,0.00036986,120]
[421249321,1777287149881,-1223.21,0.00036986,120]
[421249322,1777287149891,-500.0,0.00036986,120]
[421249323,1777287149901,-500.0,0.00036986,120]
[421249324,1777287149911,-685.94,0.00036986,120]
[421249325,1777287149921,-996.26,0.00036986,120]
[421249326,1777287149931,-987.31,0.00036986,120]
[421249327,1777287149941,-977.11,0.00036986,120]
[421249328,1777287149951,-1114.4,0.00036986,120]
[421249329,1777287149960,-922.87,0.00036986,120]
[421249330,1777287149970,-694.64,0.00036986,120]
[421249331,1777287149980,-876.6,0.00036986,120]
[421249332,1777287149989,-1292.17,0.00036986,120]
[421249333,1777287149999,-500.0,0.00036986,120]
[421249334,1777287150009,-2804.65,0.00036986,120]
[421249335,1777287150018,-831.75,0.00036986,14]
[421249336,1777287150028,-500.0,0.00036986,14]
[421249337,1777287150037,-695.08,0.00036986,120]
[421249338,1777287150047,-975.03,0.00036986,120]
[421249339,1777287150056,-414.58,0.00036986,120]
[421249340,1777287150066,-667.25,0.00036986,120]
[421249341,1777287150076,-500.0,0.00036986,120]
[421249342,1777287150085,-500.0,0.00036986,120]
[421249343,1777287150095,-514.22,0.00036986,120]
[421249344,1777287150105,-808.81,0.00036986,120]
[421249345,1777287150114,-656.37,0.00036986,120]
[421249346,1777287150123,-924.49,0.00036986,120]
[421249347,1777287150133,-1754.83,0.00036986,120]
[421249348,1777287150143,-809.84,0.00036986,120]
[421249349,1777287150153,-816.58,0.00036986,120]
[421249350,1777287150162,-1699.99,0.00036986,120]
[421249351,1777287150172,-963.43,0.00036986,120]
[421249352,1777287150182,-988.21,0.00036986,120]
[421249353,1777287150192,-803.53,0.00036986,120]
[421249354,1777287150201,-500.0,0.00036986,120]
[421249355,1777287150211,-983.75,0.00036986,120]
[421249356,1777287150220,-806.48,0.00036986,120]
[421249357,1777287150230,-1721.56,0.00036986,120]
[421249358,1777287150239,-899.89,0.00036986,120]
[421249359,1777287150249,-1666.52,0.00036986,120]
[421249360,1777287150258,-903.54,0.00036986,120]